bitfinex-derivatives/quotes_SOLF0:USTF0_20251207
["timestamp","ask_amount","ask_price","bid_price","bid_amount"]
[1765065601518,0.053599,132.19,132.16,3.22106132]
[1765065604520,6.860999,132.19,132.16,3.22106132]
[1765065610233,6.860999,132.19,132.18,3.18]
[1765065611127,0.053599,132.19,132.18,3.18]
[1765065614940,0.053599,132.19,132.16,0.05106132]
[1765065614941,105.944599,132.19,132.16,12.60541685]
[1765065615136,64.5,132.18,132.16,3.23106132]
[1765065616131,64.5,132.18,132.16,0.05106132]
[1765065616533,71.308,132.18,132.16,3.23106132]
[1765065628047,71.308,132.18,132.16,0.05106132]
[1765065630445,177.2063,132.18,132.16,0.05106132]
[1765065630646,105.9132,132.16,132.12,9.37435553]
[1765065630848,64.52,132.15,132.11,12.52435553]
[1765065631248,71.3296,132.15,132.11,12.52435553]
[1765065631448,64.52,132.15,132.11,12.52435553]
[1765065631649,0.05746198,132.14,132.12,3.19847681]
[1765065632546,6.86746198,132.14,132.12,3.19847681]
[1765065633055,6.86746198,132.14,132.12,0.04847681]
[1765065635767,0.05746198,132.14,132.12,3.19847681]
[1765065635955,64.57746198,132.14,132.12,3.19847681]
[1765065652378,64.57746198,132.14,132.12,0.04847681]
[1765065660185,71.38746198,132.14,132.09,9.37435553]
[1765065660388,170.51036198,132.14,132.08,9.37435553]
[1765065660684,170.51036198,132.14,132.07,9.37435553]
[1765065660896,170.4529,132.14,132.07,12.54435553]
[1765065661097,170.4529,132.14,132.07,3.17]
[1765065661283,0.05614126,132.12,132.09,0.05449867]
[1765065661589,64.52,132.11,132.09,0.05449867]
[1765065664295,0.05614126,132.12,132.1,3.17]
[1765065664499,64.52,132.11,132.1,3.17]
[1765065677605,0.05614126,132.12,132.1,3.17]
[1765065686311,0.05614126,132.12,132.09,9.4288542]
[1765065686515,0.05614126,132.12,132.09,0.05449867]
[1765065686516,105.9534,132.11,132.09,0.05449867]
[1765065686910,6.8121,132.1,132.05,6.5748963]
[1765065687110,64.52,132.09,132.05,6.5748963]
[1765065687516,64.52,132.09,132.05,9.6248963]
[1765065687818,0.05086435,132.08,132.06,0.05199425]
[1765065688522,0.05086435,132.08,132.03,3.05]
[1765065689520,6.86406435,132.08,132.04,0.05758306]
[1765065694217,6.86406435,132.08,132.04,3.10758306]
[1765065695113,105.9869,132.07,132.04,0.05758306]
[1765065695319,64.54,132.06,132.04,0.05758306]
[1765065696721,71.3541,132.06,132.04,0.05758306]
[1765065698222,71.3541,132.06,132.04,3.10758306]
[1765065699223,6.8141,132.06,132.04,3.10758306]
[1765065699521,64.54,132.05,132.04,3.10758306]
[1765065700427,6.8141,132.06,132.04,3.10758306]
[1765065700613,64.54,132.05,132.04,3.10758306]
[1765065701317,6.8141,132.06,132.04,3.10758306]
[1765065701525,64.54,132.07,132.04,3.10758306]
[1765065712435,64.54,132.07,132.04,0.05758306]
[1765065712839,64.54,132.07,132.04,3.38758306]
[1765065719835,71.3536,132.07,132.04,0.05758306]
[1765065721543,0.05086435,132.08,132.04,3.28758306]
[1765065721744,64.54,132.07,132.04,3.28758306]
[1765065726648,64.54,132.07,132.04,0.05758306]
[1765065727242,6.86366435,132.08,132.04,3.28758306]
[1765065727444,0.05086435,132.08,132.04,12.65767716]
[1765065727749,0.05086435,132.08,132.07,3.23]
[1765065727940,0.05086435,132.08,132.07,12.6000941]
[1765065728141,0.05086435,132.08,132.07,3.23]
[1765065731457,0.05086435,132.08,132.07,12.6000941]
[1765065736153,0.05086435,132.08,132.07,3.23]
[1765065737560,0.05086435,132.08,132.06,9.3700941]
[1765065737561,0.05086435,132.08,132.06,3.19]
[1765065741064,0.05086435,132.08,132.07,3.19]
[1765065753271,6.8105,132.13,132.07,3.19]
[1765065753465,71.3305,132.13,132.07,3.19]
[1765065753665,6.8092,132.15,132.07,3.19]
[1765065753867,64.52,132.14,132.07,3.19]
[1765065754265,64.52,132.14,132.09,3.2414405]
[1765065754266,0.05466642,132.12,132.09,3.2414405]
[1765065769379,0.05466642,132.12,132.09,0.0514405]
[1765065769586,6.86586642,132.12,132.09,0.0514405]
[1765065769788,105.9548,132.11,132.05,3.14]
[1765065769982,64.52,132.1,132.05,3.14]
[1765065770672,220.88340818,132.12,132.05,3.14]
[1765065770970,0.05708536,132.1,132.08,3.14]
[1765065771682,0.05708536,132.1,132.09,3.14]
[1765065772986,0.05708536,132.1,132.09,12.53716725]
[1765065779086,0.05708536,132.1,132.09,3.14]
[1765065779992,6.8088,132.16,132.1,3.26]
[1765065780186,64.52,132.15,132.11,3.26]
[1765065780992,0.05821828,132.14,132.12,3.3135247]
[1765065798509,64.55821828,132.14,132.12,3.3135247]
[1765065799314,0.05821828,132.14,132.12,3.3135247]
[1765065799512,64.55821828,132.14,132.12,3.3135247]
[1765065801208,0.05821828,132.14,132.12,3.3135247]
[1765065801408,64.55821828,132.14,132.12,3.3135247]
[1765065802408,0.05821828,132.14,132.12,3.3135247]
[1765065802614,64.55821828,132.14,132.12,3.3135247]
[1765065803818,0.05821828,132.14,132.12,3.3135247]
[1765065804117,71.3077,132.18,132.13,3.17]
[1765065804915,0.05057587,132.17,132.13,3.17]
[1765065808415,0.05057587,132.17,132.13,12.57081346]
[1765065808617,0.05057587,132.17,132.14,3.17]
[1765065810522,1.23839274,132.16,132.14,3.17]
[1765065817328,112.92397761,132.25,132.16,3.17]
[1765065817524,105.8128,132.29,132.21,3.17]
[1765065817829,170.3128,132.29,132.23,3.17]
[1765065818529,0.05054927,132.27,132.25,3.21899182]
[1765065823327,112.5898,132.32,132.25,3.21899182]
[1765065823522,112.5898,132.32,132.25,3.17]
[1765065823523,177.1298,132.32,132.25,3.17]
[1765065823727,105.8027,132.3,132.25,3.17]
[1765065824433,0.05833478,132.29,132.26,0.050373]
[1765065824730,64.54,132.28,132.26,0.050373]
[1765065825936,105.8292,132.27,132.22,3.17]
[1765065826833,6.804,132.25,132.19,3.17]
[1765065827131,0.05545647,132.23,132.21,0.05475195]
[1765065828432,0.05545647,132.23,132.21,3.26475195]
[1765065839934,0.05545647,132.23,132.21,3.28475195]
[1765065842134,6.86085647,132.23,132.21,0.05475195]
[1765065842537,6.86085647,132.23,132.21,3.28475195]
[1765065853041,6.86085647,132.23,132.21,0.05475195]
[1765065856046,6.86085647,132.23,132.21,3.28475195]
[1765065864451,71.36085647,132.23,132.21,3.28475195]
[1765065867951,64.55545647,132.23,132.21,3.28475195]
[1765065868343,64.55545647,132.23,132.22,3.25]
[1765065868546,0.05545647,132.23,132.22,3.25]
[1765065871464,0.05545647,132.23,132.21,3.30475195]
[1765065872767,0.05545647,132.23,132.21,12.65435735]
[1765065872966,0.05545647,132.23,132.22,3.25]
[1765065873470,64.53545647,132.23,132.22,3.25]
[1765065875778,0.05545647,132.23,132.22,3.25]
[1765065876974,0.05545647,132.23,132.22,12.5996054]
[1765065877174,0.05545647,132.23,132.22,3.25]
[1765065877680,105.8091,132.29,132.23,3.25]
[1765065877975,64.48,132.28,132.24,3.25]
[1765065878274,6.8033,132.27,132.24,3.25]
[1765065878670,6.85770637,132.27,132.24,3.30085162]
[1765065897591,0.05440637,132.27,132.24,3.30085162]
[1765065898493,64.46,132.3,132.26,3.22]
[1765065898694,64.46,132.3,132.27,3.22]
[1765065899283,64.46,132.32,132.27,3.22]
[1765065899482,0.04438768,132.31,132.29,3.22]
[1765065899688,0.04438768,132.31,132.3,9.3496054]
[1765065899889,0.04438768,132.31,132.3,12.5696054]
[1765065900379,0.04438768,132.31,132.3,3.22]
[1765065900991,10.95817036,132.37,132.3,3.22]
[1765065901197,75.45817036,132.37,132.34,3.22]
[1765065902097,75.45817036,132.37,132.34,3.26929782]
[1765065902697,68.66017036,132.37,132.34,3.26929782]
[1765065908198,68.66017036,132.37,132.34,0.04929782]
[1765065909709,75.45837036,132.37,132.34,0.04929782]
[1765065910501,68.66017036,132.37,132.34,0.04929782]
[1765065910701,64.48,132.36,132.34,3.26929782]
[1765065912100,68.64017036,132.37,132.34,3.26929782]
[1765065913299,4.16017036,132.37,132.34,3.26929782]
[1765065916107,4.16017036,132.37,132.35,3.22]
[1765065919602,4.16017036,132.37,132.36,3.19]
[1765065919809,64.46,132.43,132.36,3.19]
[1765065920002,6.7945,132.44,132.39,3.19]
[1765065920204,64.46,132.43,132.39,3.19]
[1765065920404,64.46,132.43,132.4,3.24110435]
[1765065922009,64.46,132.43,132.4,0.05110435]
[1765065922211,64.46,132.43,132.4,3.24110435]
[1765065923810,64.46,132.44,132.4,3.24110435]
[1765065924205,170.1509,132.44,132.4,0.05110435]
[1765065924714,64.48,132.43,132.4,3.24110435]
[1765065925812,71.2739,132.45,132.4,3.24110435]
[1765065926311,6.7929,132.47,132.4,3.24110435]
[1765065926514,64.48,132.46,132.4,3.24110435]
[1765065929415,6.7929,132.47,132.4,3.24110435]
[1765065932717,112.4581,132.47,132.4,3.24110435]
[1765065933215,105.6894,132.44,132.4,0.05110435]
[1765065933405,170.1772,132.43,132.4,0.05110435]
[1765065934609,170.1772,132.43,132.35,3.19]
[1765065934815,170.1772,132.43,132.34,165.87729208]
[1765065934816,105.7212,132.4,132.34,165.87729208]
[1765065935015,64.5,132.39,132.34,165.87729208]
[1765065935211,71.2973,132.39,132.34,169.06729208]
[1765065935822,0.04964438,132.38,132.35,0.04784932]
[1765065939421,0.04964438,132.38,132.35,3.23784932]
[1765065940219,6.84724438,132.38,132.35,3.23784932]
[1765065940424,6.84724438,132.38,132.35,0.04784932]
[1765065942420,64.5,132.37,132.35,0.04784932]
[1765065942926,105.7556,132.36,132.3,6.90315677]
[1765065943420,105.7673,132.35,132.31,6.90315677]
[1765065943624,64.52,132.34,132.29,10.09315677]
[1765065943818,0.05298171,132.33,132.3,0.05733604]
[1765065944520,0.05298171,132.33,132.3,3.24733604]
[1765065944722,0.05298171,132.33,132.3,10.15049281]
[1765065945019,0.05298171,132.33,132.31,3.19]
[1765065946324,64.59298171,132.33,132.31,3.19]
[1765065946519,64.59298171,132.33,132.3,0.05733604]
[1765065948521,6.8004,132.32,132.3,0.05733604]
[1765065951418,112.5872,132.32,132.3,0.05733604]
[1765065952422,6.8015,132.3,132.26,3.16]
[1765065952623,64.58,132.29,132.26,3.16]
[1765065952821,64.58,132.29,132.24,3.16]
[1765065952822,105.817,132.28,132.24,3.16]
[1765065953023,112.6195,132.28,132.24,3.16]
[1765065953226,64.58,132.29,132.24,3.16]
[1765065953431,0.05206866,132.27,132.26,3.16]
[1765065956422,0.05206866,132.27,132.25,0.04886771]
[1765065957321,105.87756866,132.27,132.25,0.04886771]
[1765065957524,0.05206866,132.27,132.25,0.04886771]
[1765065958226,64.6,132.26,132.25,0.04886771]
[1765065963123,0.05206866,132.27,132.25,3.20886771]
[1765065966936,0.05206866,132.27,132.25,0.04886771]
[1765065968941,4.45211497,132.27,132.25,0.04886771]
[1765065969240,11.25551497,132.27,132.21,3.16]
[1765065970143,11.25551497,132.27,132.23,0.05612161]
[1765065971147,4.40004631,132.26,132.23,0.05612161]
[1765065971349,64.62,132.25,132.23,0.05612161]
[1765065972041,64.67670051,132.25,132.23,0.05612161]
[1765065975252,0.05670051,132.25,132.23,3.21612161]
[1765065975642,64.62,132.29,132.23,3.21612161]
[1765065976343,64.62,132.29,132.24,3.16]
[1765065977055,0.05606174,132.28,132.24,3.16]
[1765065982944,0.05606174,132.28,132.25,3.25]
[1765065985355,0.05606174,132.28,132.25,10.16477889]
[1765065985556,0.05606174,132.28,132.26,3.25]
[1765065985764,0.05606174,132.28,132.26,3.29943067]
[1765065988353,0.05606174,132.28,132.27,3.25]
[1765065993253,0.05606174,132.28,132.26,3.29943067]
[1765065995454,0.05606174,132.28,132.26,10.21420956]
[1765065995760,0.05606174,132.28,132.27,3.25]
[1765065996450,105.87446174,132.28,132.24,3.73656662]
[1765065996655,4.45610805,132.28,132.21,3.25]
[1765065996852,4.45610805,132.28,132.22,3.25]
[1765065997053,69.11610805,132.28,132.22,3.25]
[1765065997253,75.91880805,132.28,132.22,3.25]
[1765065997456,75.91880805,132.28,132.25,3.25]
[1765065997863,6.85876174,132.28,132.25,3.25]
[1765066002963,71.49876174,132.28,132.25,3.25]
[1765066007371,75.89880805,132.28,132.24,3.26532905]
[1765066007667,6.8033,132.27,132.24,0.05532905]
[1765066007871,110.23424631,132.26,132.24,0.05532905]
[1765066009472,117.03804631,132.26,132.24,0.05532905]
[1765066010371,64.64,132.25,132.24,0.05532905]
[1765066012477,67.45838638,132.25,132.24,0.05532905]
[1765066015774,2.81838638,132.25,132.24,0.05532905]
[1765066015984,67.45838638,132.25,132.24,0.05532905]
[1765066017277,64.64,132.25,132.24,0.05532905]
[1765066017472,67.45838638,132.25,132.24,0.05532905]
[1765066020677,2.81838638,132.25,132.24,0.05532905]
[1765066020872,67.45838638,132.25,132.24,3.32532905]
[1765066021670,67.45838638,132.25,132.24,0.05532905]
[1765066022271,67.45838638,132.25,132.2,3.27]
[1765066022470,2.81838638,132.23,132.2,3.27]
[1765066022675,64.64,132.22,132.2,3.27]
[1765066023485,64.69481991,132.22,132.2,3.32173572]
[1765066026983,0.05481991,132.22,132.2,3.32173572]
[1765066030385,0.05481991,132.22,132.2,0.05173572]
[1765066031891,2.81838638,132.21,132.2,0.05173572]
[1765066036593,0.05481991,132.22,132.2,3.32173572]
[1765066041293,0.05481991,132.22,132.2,12.67134112]
[1765066041598,0.05481991,132.22,132.21,3.13]
[1765066042792,74.28158638,132.27,132.22,3.13]
[1765066043700,0.05699064,132.26,132.24,3.13]
[1765066056507,2.87537702,132.26,132.23,3.17791605]
[1765066060112,2.87537702,132.26,132.23,0.04791605]
[1765066060513,2.87537702,132.26,132.23,3.17791605]
[1765066061121,9.67917702,132.26,132.23,3.17791605]
[1765066061323,9.67917702,132.26,132.23,0.04791605]
[1765066064918,2.81838638,132.24,132.23,0.04791605]
[1765066065124,67.41838638,132.24,132.23,0.04791605]
[1765066068622,6.8053,132.23,132.19,12.4796054]
[1765066068925,2.81838638,132.22,132.19,3.13]
[1765066069223,64.6,132.21,132.19,3.13]
[1765066069623,64.65357597,132.21,132.19,3.18028385]
[1765066081133,0.05357597,132.21,132.19,3.18028385]
[1765066085531,0.05357597,132.21,132.2,3.09]
[1765066085929,0.05357597,132.21,132.2,12.4396054]
[1765066087938,0.05357597,132.21,132.19,3.14028385]
[1765066090031,0.05357597,132.21,132.19,0.05028385]
[1765066096345,0.05357597,132.21,132.19,3.14028385]
[1765066097445,0.05357597,132.21,132.2,3.24]
[1765066104855,0.05357597,132.21,132.2,12.5896054]
[1765066106655,64.58,132.24,132.21,3.24]
[1765066107558,64.58,132.24,132.21,12.5896054]
[1765066107754,64.6309631,132.24,132.22,3.24]
[1765066107954,64.6309631,132.24,132.22,3.29392724]
[1765066109556,0.0509631,132.24,132.22,3.29392724]
[1765066109854,0.0509631,132.24,132.23,12.5896054]
[1765066110250,0.0509631,132.24,132.23,3.24]
[1765066119958,0.0509631,132.24,132.22,0.05392724]
[1765066125568,64.6309631,132.24,132.22,0.05392724]
[1765066126968,71.4357631,132.24,132.22,0.05392724]
[1765066127673,71.4357631,132.24,132.2,3.24]
[1765066127674,75.84030647,132.24,132.18,12.6596054]
[1765066127861,6.8054,132.23,132.19,3.31]
[1765066128665,6.8054,132.23,132.2,0.04841384]
[1765066129271,4.45550647,132.24,132.2,3.35841384]
[1765066129465,64.58,132.23,132.2,3.35841384]
[1765066133778,0.0509631,132.24,132.2,3.35841384]
[1765066134078,64.58,132.23,132.2,3.35841384]
[1765066136582,0.0509631,132.24,132.2,3.35841384]
[1765066136779,64.6309631,132.24,132.2,3.35841384]
[1765066141080,2.81790063,132.23,132.2,0.04841384]
[1765066141476,64.6309631,132.24,132.2,0.04841384]
[1765066141477,2.81790063,132.21,132.2,0.04841384]
[1765066142889,2.81790063,132.21,132.16,3.08]
[1765066143084,2.81790063,132.19,132.16,3.08]
[1765066143787,2.87546577,132.19,132.16,3.13799904]
[1765066150382,2.87546577,132.19,132.16,0.05799904]
[1765066151288,2.87546577,132.19,132.16,3.13799904]
[1765066153287,0.05756514,132.19,132.16,3.13799904]
[1765066154299,2.81790063,132.23,132.18,3.08]
[1765066155283,2.81790063,132.23,132.19,0.05689481]
[1765066155491,0.04864302,132.22,132.2,3.08]
[1765066158095,0.04864302,132.22,132.21,3.23]
[1765066158994,2.81790063,132.27,132.21,3.23]
[1765066159899,0.05077507,132.25,132.24,3.23]
[1765066167312,2.8686757,132.25,132.23,0.04761851]
[1765066171410,64.56,132.24,132.23,0.04761851]
[1765066171814,64.56,132.24,132.2,6.97802956]
[1765066172011,67.37790063,132.24,132.21,3.23]
[1765066172213,2.81790063,132.24,132.21,3.23]
[1765066172808,2.81790063,132.24,132.21,3.27881918]
[1765066176217,2.81790063,132.24,132.21,0.04881918]
[1765066176411,2.81790063,132.22,132.21,0.04881918]
[1765066178514,2.81790063,132.24,132.21,3.27881918]
[1765066183720,2.81790063,132.24,132.22,3.23]
[1765066186516,2.81790063,132.24,132.21,0.04881918]
[1765066186923,2.81790063,132.22,132.21,0.04881918]
[1765066187317,170.47447507,132.25,132.21,0.04881918]
[1765066187516,2.81790063,132.22,132.21,0.04881918]
[1765066190430,9.62270063,132.24,132.21,3.39881918]
[1765066191831,9.62270063,132.24,132.21,0.04881918]
[1765066194447,6.8048,132.24,132.21,0.04881918]
[1765066194736,6.8048,132.24,132.21,3.14881918]
[1765066194942,6.8048,132.24,132.21,10.12405657]
[1765066197047,64.63077507,132.25,132.22,3.1]
[1765066197340,64.6,132.24,132.23,10.07523739]
[1765066197738,0.05077507,132.25,132.23,10.07523739]
[1765066197938,64.63077507,132.25,132.23,10.07523739]
[1765066198246,0.05077507,132.25,132.23,10.07523739]
[1765066201340,0.05077507,132.25,132.24,10.07523739]
[1765066201741,0.05077507,132.25,132.24,6.97523739]
[1765066201945,0.05077507,132.25,132.22,6.97523739]
[1765066202340,0.05077507,132.25,132.21,7.02405657]
[1765066203048,0.05077507,132.25,132.22,10.07523739]
[1765066203246,0.05077507,132.25,132.23,3.1]
[1765066203449,64.65077507,132.25,132.23,10.07523739]
[1765066205143,64.65077507,132.25,132.24,3.1]
[1765066205543,0.05077507,132.25,132.24,3.1]
[1765066221460,0.05077507,132.25,132.24,10.07523739]
[1765066229261,0.05077507,132.25,132.24,10.07424114]
[1765066233058,0.05077507,132.25,132.24,3.1]
[1765066235868,6.802,132.29,132.24,3.1]
[1765066236165,64.54,132.32,132.29,3.11]
[1765066236364,64.54,132.32,132.3,3.11]
[1765066236557,174.73192366,132.32,132.29,5.7860666]
[1765066236758,4.40402366,132.3,132.27,3.11]
[1765066236959,4.45872252,132.3,132.27,0.05420514]
[1765066237466,11.26052252,132.3,132.27,3.16420514]
[1765066241370,6.85649886,132.3,132.27,3.16420514]
[1765066241571,0.05469886,132.3,132.27,3.16420514]
[1765066241959,0.05469886,132.3,132.28,3.11]
[1765066254484,2.8703942,132.3,132.28,3.11]
[1765066254686,2.8703942,132.3,132.27,0.05420514]
[1765066254881,2.81569534,132.28,132.27,0.05420514]
[1765066255284,67.37569534,132.28,132.27,0.05420514]
[1765066275899,67.37569534,132.28,132.23,3.26]
[1765066276098,67.37569534,132.28,132.22,3.26]
[1765066276099,2.81569534,132.25,132.22,3.26]
[1765066276290,2.81569534,132.23,132.19,9.3496054]
[1765066276490,2.81569534,132.23,132.2,3.26]
[1765066277100,2.8695693,132.23,132.2,3.31677181]
[1765066296123,105.8116,132.29,132.2,6.13246715]
[1765066296328,64.56,132.28,132.23,3.25]
[1765066296514,64.56,132.28,132.24,3.25]
[1765066296715,64.56,132.28,132.26,3.25]
[1765066297224,64.61230677,132.28,132.26,3.30641996]
[1765066305128,2.81569534,132.27,132.26,0.05641996]
[1765066307631,2.81569534,132.27,132.21,3.16]
[1765066307632,105.8332,132.26,132.21,3.16]
[1765066307830,2.81569534,132.23,132.21,3.16]
[1765066308625,2.87217921,132.23,132.21,3.21585748]
[1765066309327,2.87217921,132.23,132.22,3.16]
[1765066309532,0.05648387,132.23,132.22,3.16]
[1765066314344,0.05648387,132.23,132.22,10.10230051]
[1765066319045,0.05648387,132.23,132.21,6.99815799]
[1765066319241,4.45893387,132.23,132.21,0.05585748]
[1765066324450,4.45893387,132.23,132.21,3.31585748]
[1765066324956,0.05648387,132.23,132.21,3.31585748]
[1765066332453,0.05648387,132.23,132.21,0.05585748]
[1765066332454,117.12253387,132.23,132.21,0.05585748]
[1765066332654,105.8815,132.2,132.17,3.26]
[1765066332952,64.56,132.19,132.17,3.26]
[1765066333355,64.56,132.19,132.17,10.20230051]
[1765066333553,64.60806587,132.19,132.18,3.26]
[1765066334752,71.41546587,132.19,132.17,3.31594761]
[1765066334954,71.41546587,132.19,132.17,0.05594761]
[1765066335552,71.41546587,132.19,132.17,3.31594761]
[1765066338065,71.41546587,132.19,132.17,0.05594761]
[1765066338066,181.70721587,132.19,132.17,0.05594761]
[1765066348477,181.70721587,132.19,132.17,3.24594761]
[1765066348681,117.14721587,132.19,132.17,3.24594761]
[1765066348871,64.58,132.18,132.17,0.05594761]
[1765066349072,64.58,132.18,132.17,3.24594761]
[1765066349779,64.58,132.18,132.17,0.05594761]
[1765066356686,6.8097,132.14,132.13,6.95478598]
[1765066356887,71.3897,132.14,132.13,3.19]
[1765066364292,71.3897,132.14,132.13,10.14478598]
[1765066365486,71.3897,132.14,132.13,3.19]
[1765066368092,71.3897,132.14,132.12,10.21239674]
[1765066369595,71.3897,132.14,132.12,3.25761076]
[1765066369795,71.3897,132.14,132.12,10.21239674]
[1765066371396,71.3897,132.14,132.13,3.21]
[1765066372290,71.3897,132.14,132.13,10.16478598]
[1765066372684,71.3897,132.14,132.12,10.21239674]
[1765066375396,71.3897,132.14,132.13,6.95478598]
[1765066387405,71.3897,132.14,132.13,8.598e-05]
[1765066387596,177.3202,132.14,132.12,0.04761076]
[1765066387802,2.82204086,132.13,132.12,0.04761076]
[1765066388295,177.3202,132.14,132.12,0.04761076]
[1765066388296,177.3202,132.14,132.12,3.25761076]
[1765066388495,180.14224086,132.14,132.12,3.25761076]
[1765066390513,180.14224086,132.14,132.12,0.04761076]
[1765066395217,180.14224086,132.14,132.06,12.5596054]
[1765066395218,6.8128,132.08,132.06,12.5596054]
[1765066395420,71.4128,132.08,132.06,3.21]
[1765066396222,71.47043131,132.08,132.06,0.0579462]
[1765066397816,2.82204086,132.07,132.06,0.0579462]
[1765066402318,6.87043131,132.08,132.06,3.2179462]
[1765066402523,64.62,132.07,132.06,3.2179462]
[1765066405115,64.62,132.07,132.06,0.0579462]
[1765066405425,67.44204086,132.07,132.06,0.0579462]
[1765066413430,6.8152,132.04,132.02,3.16]
[1765066413631,64.62,132.03,131.99,3.16]
[1765066414423,0.05206578,132.02,132.01,3.16]
[1765066419223,6.86836578,132.02,132.0,3.21804203]
[1765066420216,9.69040664,132.02,132.0,3.21804203]
[1765066420435,64.62,132.01,132.0,0.05804203]
[1765066420932,64.62,132.01,131.94,12.5096054]
[1765066421116,64.62,132.01,131.91,9.3496054]
[1765066421117,106.0657,131.97,131.91,9.3496054]
[1765066421321,173.53644086,131.96,131.93,3.16]
[1765066421915,6.8198,131.95,131.93,3.16]
[1765066422117,6.8198,131.95,131.93,3.21600581]
[1765066423330,64.68861695,131.96,131.93,3.21600581]
[1765066424332,9.64154086,131.95,131.93,3.21600581]
[1765066425229,9.64154086,131.95,131.93,0.05600581]
[1765066425230,115.72674086,131.95,131.93,0.05600581]
[1765066427431,6.8216,131.91,131.88,3.16]
[1765066427627,67.52204086,131.9,131.88,3.16]
[1765066428536,64.74845001,131.9,131.88,3.21268647]
[1765066432838,0.04845001,131.9,131.88,3.21268647]
[1765066434441,67.56204086,131.94,131.88,4.73268647]
[1765066434634,67.56204086,131.94,131.88,3.21268647]
[1765066435642,0.05028191,131.92,131.88,3.21268647]
[1765066450952,0.05028191,131.92,131.88,10.03548647]
[1765066451147,0.05028191,131.92,131.89,3.12]
[1765066452350,0.05028191,131.92,131.89,10.08056158]
[1765066452753,0.05028191,131.92,131.9,3.12]
[1765066454346,64.74,131.95,131.91,3.12]
[1765066454747,64.74,131.95,131.92,3.12]
[1765066455253,64.79311381,131.95,131.92,3.17006187]
[1765066456355,64.79311381,131.95,131.93,3.12]
[1765066457149,0.05311381,131.95,131.93,3.12]
[1765066457856,0.05311381,131.95,131.93,10.08056158]
[1765066458057,0.05311381,131.95,131.94,3.22]
[1765066460155,6.816,132.02,131.95,3.22]
[1765066460458,6.816,132.02,131.97,3.22]
[1765066461154,0.05759442,132.01,131.98,3.27036726]
[1765066468574,4.42324045,131.99,131.98,0.05036726]
[1765066473373,106.0608,131.98,131.94,7.00800027]
[1765066473574,4.42324045,131.96,131.94,7.00800027]
[1765066473775,69.16324045,131.96,131.93,7.00800027]
[1765066474576,76.03403822,131.96,131.93,7.05836958]
[1765066474773,76.03403822,131.96,131.93,0.05036931]
[1765066476883,6.8199,131.95,131.93,0.05036931]
[1765066479981,4.42324045,131.94,131.93,0.05036931]
[1765066483185,6.8199,131.95,131.93,0.05036931]
[1765066483373,64.76,131.94,131.93,3.27036931]
[1765066483977,64.76,131.94,131.93,0.05036931]
[1765066493683,64.76,131.94,131.93,3.13036931]
[1765066493890,0.05179777,131.96,131.93,4.65036931]
[1765066494088,0.05179777,131.96,131.95,3.08]
[1765066494491,0.05179777,131.96,131.95,10.09083499]
[1765066501292,2.82897744,131.99,131.96,3.31]
[1765066501492,2.82897744,132.01,131.97,10.32083499]
[1765066501698,2.82897744,131.99,131.97,7.01083499]
[1765066502003,67.56897744,131.99,131.96,10.32083499]
[1765066502503,67.61973767,131.99,131.96,10.37130393]
[1765066502805,64.79076023,131.99,131.97,3.31]
[1765066503303,64.79076023,131.99,131.98,3.31]
[1765066504098,64.79076023,131.99,131.98,10.32083499]
[1765066507310,64.79076023,131.99,131.97,7.01083499]
[1765066507509,64.79076023,131.99,131.96,7.06130393]
[1765066507708,64.79076023,131.99,131.96,10.37130393]
[1765066507912,2.82897744,131.98,131.96,0.05046894]
[1765066516625,2.82897744,131.98,131.96,3.36046894]
[1765066517524,67.61973767,131.99,131.96,3.36046894]
[1765066520330,0.05076023,131.99,131.97,3.12]
[1765066520531,0.05076023,131.99,131.98,10.13083499]
[1765066521228,0.05076023,131.99,131.98,3.12]
[1765066521529,0.05076023,131.99,131.98,10.13083499]
[1765066522438,0.05076023,131.99,131.98,3.12]
[1765066523129,0.05076023,131.99,131.98,10.13083499]
[1765066523330,0.05076023,131.99,131.98,3.12]
[1765066528440,0.05076023,131.99,131.97,7.01083499]
[1765066528628,2.87973767,131.99,131.97,7.01083499]
[1765066533838,2.87973767,131.99,131.97,10.13083499]
[1765066534040,2.87973767,131.99,131.98,3.12]